[Event "Stockholm Elo Challenge 2019"]
[Site "Stockholm"]
[Date "2019.05.31"]
[Round "4.3"]
[White "Bergqvist, Gustav"]
[Black "Mayrany, Fargalla"]
[Result "1-0"]
[ECO "C00"]
[WhiteElo "1751"]
[BlackElo "1863"]
[Annotator "NA"]
[PlyCount "85"]
[EventDate "2019.05.29"]
[EventType "swiss"]
[EventCountry "SWE"]
[SourceTitle "playchess.com"]
[Source "ChessBase"]
[SourceQuality "1"]
[TimeControl "40/5400+30:1800+30"]

1. e4 {[%emt 0:00:00]} e6 {[%emt 0:02:03]} 2. d4 {[%emt 0:00:00]} b6 {[%emt 0:00:07]} 3. Nf3 {[%emt 0:00:53]} Bb7 {[%emt 0:00:36]} 4. Bd3 {[%emt 0:00:21]} c5 {[%emt 0:00:36]} 5. c3 {[%emt 0:01:09]} Nf6 {[%emt 0:01:25]} 6. e5 {[%emt 0:02:19]} Nd5 {[%emt 0:00:47]} 7. O-O {[%emt 0:04:00]} Nc6 {[%emt 0:02:03] B00: Queen's Fianchetto Defence, Nimzowitsch Defence} 8. Be3 $146 {[%emt 0:03:09]} ({Predecessor:} 8. Be4 cxd4 9. Bxd5 exd5 10. Nxd4 Nxd4 11. cxd4 d6 12. Bf4 dxe5 13. Bxe5 f6 14. Bg3 Kf7 15. Nc3 {½-½ (62) Ni,H (2662)-Khairullin,I (2649) Khanty-Mansiysk 2011}) 8... cxd4 {[%emt 0:05:31]} 9. cxd4 {[%emt 0:02:01]} Ncb4 {[%emt 0:03:45]} 10. a3 {[%emt 0:05:40]} Nxd3 {[%emt 0:00:19]} 11. Qxd3 {[%emt 0:00:03]} Be7 {[%emt 0:07:05]} 12. Nc3 {[%emt 0:02:26]} O-O {[%emt 0:00:20]} 13. Ne4 {[%emt 0:06:02]} f5 {[%emt 0:06:58]} 14. exf6 {[%emt 0:03:34]} Nxf6 {[%emt 0:07:20]} 15. Nfd2 {[%emt 0:03:36]} a5 {[%emt 0:02:41]} 16. Rfe1 {[%emt 0:04:52]} Qe8 {[%emt 0:01:56]} 17. f3 {[%emt 0:04:56]} Qh5 {[%emt 0:05:58]} 18. Ng3 {[%emt 0:02:52]} Qf7 {[%emt 0:13:01]} 19. Nde4 {[%emt 0:05:35]} Nxe4 {[%emt 0:07:01]} 20. Nxe4 {[%emt 0:02:52]} Qg6 {[%emt 0:00:44]} 21. Nf2 {[%emt 0:01:14]} Qh5 {[%emt 0:01:24]} 22. Ne4 {[%emt 0:04:05]} Bh4 {[%emt 0:10:07]} 23. Bf2 {[%emt 0:04:11]} Be7 {[%emt 0:01:39]} 24. Bg3 {[%emt 0:05:17]} Qd5 {[%emt 0:02:16]} 25. Nc3 {[%emt 0:01:32]} Qh5 {[%emt 0:01:05]} 26. Re5 {[%emt 0:01:32]} Qf7 {[%emt 0:02:04]} 27. Rae1 {[%emt 0:02:55]} Bd6 {[%emt 0:00:45]} 28. Rg5 {[%emt 0:00:25]} Bxg3 {[%emt 0:00:34]} 29. hxg3 {[%emt 0:01:23]} Qe7 {[%emt 0:01:36]} 30. Rge5 {[%emt 0:01:01]} Rf6 {[%emt 0:00:49]} 31. Ne4 {[%emt 0:03:26]} Rg6 {[%emt 0:00:39]} 32. d5 {[%emt 0:01:43]} Re8 {[%emt 0:05:47]} 33. dxe6 {[%emt 0:01:42]} Rxe6 {[%emt 0:01:14] [#]} (33... dxe6 $16 {is a better defense.} 34. Qb5 Bxe4 35. R1xe4 (35. R5xe4 Qd8 $16) 35... Qd8) 34. Ng5 $1 {[%emt 0:01:29] Discovered Attack} Qxg5 {[%emt 0:03:31]} 35. Rxg5 {[%emt 0:00:15]} Rxe1+ {[%emt 0:00:14]} 36. Kh2 {[%emt 0:00:52]} Bc6 {[%emt 0:01:15]} 37. Qc3 {[%emt 0:02:04]} g6 {[%emt 0:01:11]} 38. Qb3+ {[%emt 0:00:34]} Kg7 {[%emt 0:00:38]} (38... R8e6 {is a better defense.} 39. Qxb6 R1e2 40. Qb8+ (40. Qxa5 Bxf3 41. Rd5 Bxd5 $14) 40... Kg7) 39. Qxb6 {[%emt 0:01:01]} Bxf3 $2 {[%emt 0:01:30]} (39... a4 40. Qd4+ Kg8) 40. gxf3 {[%emt 0:01:39]} R1e2+ $18 {[%emt 0:00:45]} 41. Kh3 {[%emt 0:30:30]} Re1 {[%emt 0:01:50]} 42. Qd4+ {[%emt 0:00:00]} Kh6 43. Rh5+ 1-0

[Event "Stockholm Elo Challenge 2019"]
[Site "Stockholm"]
[Date "2019.05.31"]
[Round "4.4"]
[White "Molin, Nils"]
[Black "Sjostrand, Joel"]
[Result "1-0"]
[ECO "B00"]
[WhiteElo "1816"]
[BlackElo "1977"]
[Annotator "NA"]
[PlyCount "91"]
[EventDate "2019.05.29"]
[EventType "swiss"]
[EventCountry "SWE"]
[SourceTitle "playchess.com"]
[Source "ChessBase"]
[SourceQuality "1"]
[TimeControl "40/5400+30:1800+30"]

1. e4 {[%emt 0:00:00]} d6 {[%emt 0:00:26]} 2. Nf3 {[%emt 0:00:41]} Nf6 {[%emt 0:00:15]} 3. d3 {[%emt 0:00:18]} Bg4 {[%emt 0:05:35]} 4. h3 {[%emt 0:02:32]} Bxf3 {[%emt 0:01:22]} 5. Qxf3 {[%emt 0:00:15]} e6 {[%emt 0:00:05]} 6. Qg3 {[%emt 0:01:45]} c5 {[%emt 0:03:30]} 7. Be2 {[%emt 0:00:42]} Nc6 {[%emt 0:00:07]} 8. O-O {[%emt 0:00:25]} Nd4 {[%emt 0:05:39]} 9. Bd1 {[%emt 0:00:21]} e5 {[%emt 0:08:10]} 10. f4 {[%emt 0:03:25]} exf4 {[%emt 0:04:22]} 11. Bxf4 {[%emt 0:02:02]} Ne6 {[%emt 0:10:53]} 12. Be3 {[%emt 0:01:44]} d5 {[%emt 0:02:38]} 13. e5 {[%emt 0:15:43]} Nd7 {[%emt 0:00:13]} 14. c3 {[%emt 0:00:54]} d4 {[%emt 0:06:16]} 15. cxd4 {[%emt 0:02:41]} cxd4 {[%emt 0:01:15]} 16. Bf4 {[%emt 0:03:24]} Qb6 {[%emt 0:06:04]} 17. Bb3 {[%emt 0:01:09]} Ndc5 {[%emt 0:01:05]} 18. Nd2 {[%emt 0:02:20]} Nxb3 {[%emt 0:02:47]} 19. axb3 {[%emt 0:05:27]} Bc5 {[%emt 0:10:17]} 20. Ne4 {[%emt 0:02:06]} Rd8 {[%emt 0:05:41]} 21. Rac1 {[%emt 0:01:17]} O-O {[%emt 0:08:36] [#]} 22. Bh6 $1 {[%emt 0:05:43]} Be7 {[%emt 0:00:26]} 23. Rf6 {[%emt 0:12:25]} Bxf6 {[%emt 0:01:05]} 24. Nxf6+ {[%emt 0:00:37]} Kh8 {[%emt 0:00:54]} 25. Bxg7+ {[%emt 0:00:15]} Nxg7 {[%emt 0:00:16]} 26. Qh4 {[%emt 0:00:43]} Qxf6 {[%emt 0:03:12]} 27. Qxf6 {[%emt 0:01:01]} Kg8 {[%emt 0:00:15]} 28. Rc7 {[%emt 0:02:01]} Rb8 {[%emt 0:02:57]} 29. Qg5 {[%emt 0:02:02]} b5 {[%emt 0:01:03]} 30. e6 {[%emt 0:01:18]} a6 {[%emt 0:01:35]} 31. Rd7 {[%emt 0:04:19]} h6 {[%emt 0:04:01]} 32. Qg4 {[%emt 0:06:56]} h5 {[%emt 0:01:06]} 33. Qg5 {[%emt 0:02:07]} Rb6 {[%emt 0:01:41]} 34. e7 {[%emt 0:02:51]} (34. exf7+ $142 Kh7 {[#]} 35. Qc5 $1 {[%mdl 512]} Rbb8 36. Qe7 Rbc8 37. Qe4+ {[%mdl 64] Double Attack} Kh8 38. Qg6 Nf5 39. Qf6+ Kh7 40. Qxf5+ {[%mdl 64] Double Attack} Kh8 41. Qxh5+ Kg7 42. Qg5+ Kh7 43. Rxd4 Rc1+ 44. Kh2 Rh1+ 45. Kxh1 Rxf7 46. Rh4#) 34... Re8 {[%emt 0:00:09]} 35. Rd8 {[%emt 0:00:12]} Rb8 {[%emt 0:00:05]} 36. b4 {[%emt 0:06:52]} Kh7 {[%emt 0:02:34]} 37. Rxd4 {[%emt 0:01:14]} Rb7 {[%emt 0:01:10]} 38. Re4 {[%emt 0:00:48]} Rb6 {[%emt 0:00:31]} 39. d4 {[%emt 0:01:18]} Rg6 {[%emt 0:00:42]} 40. Qd5 {[%emt 0:01:00]} Rf6 {[%emt 0:00:21]} 41. Qd7 {[%emt 0:34:21]} Re6 {[%emt 0:04:35]} 42. Rxe6 {[%emt 0:00:00]} fxe6 {[%emt 0:00:02]} 43. Qb7 {[%emt 0:00:00]} Nf5 {[%emt 0:00:16]} 44. Qxa6 {[%emt 0:00:00]} Rxe7 $18 {[%emt 0:00:13]} 45. Qxb5 {[%emt 0:00:00]} Nxd4 {[%emt 0:00:10]} 46. Qxh5+ {[%emt 0:00:00]} 1-0

[Event "Stockholm Elo Challenge 2019"]
[Site "Stockholm"]
[Date "2019.05.31"]
[Round "4.5"]
[White "Korning, Peter"]
[Black "Storskog, Thomas"]
[Result "1-0"]
[ECO "A04"]
[WhiteElo "1966"]
[BlackElo "1790"]
[Annotator "NA RC"]
[PlyCount "111"]
[EventDate "2019.05.29"]
[EventType "swiss"]
[EventCountry "SWE"]
[SourceTitle "playchess.com"]
[Source "ChessBase"]
[SourceQuality "1"]
[TimeControl "40/5400+30:1800+30"]

1. Nf3 {[%emt 0:00:16]} b6 {[%emt 0:00:15]} 2. g3 {[%emt 0:00:36]} Bb7 {[%emt 0:01:31]} 3. Bg2 {[%emt 0:00:02]} Nf6 {[%emt 0:01:48]} 4. O-O {[%emt 0:00:56]} c5 {[%emt 0:02:42]} 5. d3 {[%emt 0:01:40]} d5 {[%emt 0:00:32]} 6. Nbd2 {[%emt 0:01:52]} Nbd7 {[%emt 0:03:56] A04: Unusual lines after 1 Nf3 and King's Indian Attack} (6... e6 7. e4 Be7 8. Qe2 O-O 9. e5 Nfd7 10. Re1 Nc6 11. h4 Qc7 12. Nf1 Rfc8 13. Bf4 d4 14. h5 h6 15. N1d2 Nb4 16. Nc4 Nd5 17. Bd2 Rab8 18. a4 a6 19. c3 dxc3 20. bxc3 {½-½ (65) Friedel,J (2562)-Dragun,K (2591) Saint Louis 2018}) 7. e4 {[%emt 0:04:29]} Qc7 {[%emt 0:02:46]} 8. Re1 {[%emt 0:04:14]} dxe4 {[%emt 0:03:52]} 9. dxe4 {[%emt 0:01:08]} e5 {[%emt 0:01:24]} 10. b3 {[%emt 0:13:38]} g6 $146 {[%emt 0:00:57]} ({Predecessor:} 10... b5 11. Bb2 Rd8 12. Qe2 a6 13. a4 Bc6 14. axb5 axb5 {1-0 (49) Voegeli,M (1740)-Salomon Emmanuel,Y (1588) Costa Brava 2016}) 11. Bb2 {[%emt 0:01:36]} Ba6 {[%emt 0:01:10]} 12. Bf1 {[%emt 0:02:32]} Bxf1 {[%emt 0:04:53]} 13. Rxf1 {[%emt 0:07:23]} Bg7 {[%emt 0:00:43]} 14. Nc4 {[%emt 0:04:28]} O-O {[%emt 0:07:50]} 15. Qe2 {[%emt 0:12:56]} Rfe8 {[%emt 0:06:05]} 16. Rad1 {[%emt 0:05:27]} Re7 {[%emt 0:03:19]} 17. a4 {[%emt 0:02:31]} Ne8 {[%emt 0:13:26]} 18. Rd3 {[%emt 0:04:47]} a6 {[%emt 0:05:03]} 19. Ra1 {[%emt 0:05:17]} Rb8 {[%emt 0:01:29]} 20. Ne3 {[%emt 0:04:18]} Nef6 {[%emt 0:02:24]} 21. Nd5 {[%emt 0:03:01]} Nxd5 {[%emt 0:00:22]} 22. Rxd5 {[%emt 0:01:02]} b5 {[%emt 0:02:09]} 23. axb5 {[%emt 0:02:07]} axb5 {[%emt 0:00:03]} 24. Rdd1 {[%emt 0:01:39]} Qc6 {[%emt 0:04:26]} 25. Ra7 {[%emt 0:01:45]} Rb7 {[%emt 0:01:01]} 26. Ra8+ {[%emt 0:00:38]} Bf8 {[%emt 0:00:25]} 27. Bc1 {[%emt 0:04:09]} Rb8 {[%emt 0:01:17]} 28. Rxb8 {[%emt 0:00:52]} Nxb8 {[%emt 0:00:14]} 29. Rd8 {[%emt 0:01:28]} Re8 {[%emt 0:00:18]} 30. Rxe8 {[%emt 0:01:54]} Qxe8 {[%emt 0:00:02]} 31. Qd3 {[%emt 0:01:04]} Na6 {[%emt 0:02:29]} 32. Bd2 {[%emt 0:00:37]} Nc7 {[%emt 0:00:51]} 33. Bc3 {[%emt 0:00:50]} f6 {[%emt 0:00:55]} 34. Nd2 {[%emt 0:00:44]} Qe7 {[%emt 0:00:37]} 35. Nf1 {[%emt 0:00:32]} Qd6 {[%emt 0:00:18]} 36. Qxd6 {[%emt 0:00:33]} Bxd6 {[%emt 0:00:02]} 37. Ne3 {[%emt 0:00:44]} b4 {[%emt 0:00:38]} 38. Bb2 {[%emt 0:00:42]} Nb5 {[%emt 0:00:31]} 39. Nc4 {[%emt 0:00:31]} Bc7 {[%emt 0:02:58]} 40. f3 {[%emt 0:00:41]} Kf7 {[%emt 0:01:49]} 41. Kf1 {[%emt 0:31:46]} Nd6 {[%emt 0:32:58]} 42. Nxd6+ {[%emt 0:00:00]} Bxd6 {[%emt 0:00:00]} 43. Ke2 {[%emt 0:00:00]} Ke6 {[%emt 0:00:00]} 44. Kd3 {[%emt 0:00:00]} g5 $2 {[%emt 0:00:00]} (44... Kd7 $14) 45. Kc4 {[%emt 0:00:00]} Bf8 {[%emt 0:00:00]} 46. Kb5 {[%emt 0:00:00]} g4 {[%emt 0:00:00]} 47. fxg4 {[%emt 0:00:00]} Bh6 {[%emt 0:00:00]} 48. Kxc5 {[%emt 0:00:00]} Bd2 {[%emt 0:00:19]} 49. Kc4 {[%emt 0:00:00]} Be1 {[%emt 0:00:14]} 50. Bc1 {[%emt 0:00:00]} Kd6 {[%emt 0:01:43]} 51. Be3 {[%emt 0:00:00]} Kc6 {[%emt 0:00:19]} 52. Bc5 {[%emt 0:00:00]} Bd2 {[%emt 0:00:08]} 53. Bxb4 {[%emt 0:00:00]} Be3 {[%emt 0:00:08]} 54. Be7 {[%emt 0:00:00]} Bg1 {[%emt 0:00:03]} 55. Bxf6 {[%emt 0:00:00]} Bxh2 {[%emt 0:00:05]} 56. Bxe5 {[%emt 0:00:00]} 1-0

[Event "Stockholm Elo Challenge 2019"]
[Site "Stockholm"]
[Date "2019.05.31"]
[Round "4.6"]
[White "Jansson, Gilbert"]
[Black "Isaksson, Max"]
[Result "1-0"]
[ECO "D03"]
[WhiteElo "1892"]
[BlackElo "1572"]
[Annotator "NA"]
[PlyCount "43"]
[EventDate "2019.05.29"]
[EventType "swiss"]
[EventCountry "SWE"]
[SourceTitle "playchess.com"]
[Source "ChessBase"]
[SourceQuality "1"]
[TimeControl "40/5400+30:1800+30"]

1. d4 d5 2. Nf3 Nf6 3. Bg5 e6 4. Nbd2 Be7 5. e3 O-O 6. Bd3 c5 7. c3 Nc6 8. O-O b6 9. Qa4 Bb7 10. Ne5 Nxe5 11. dxe5 Nd7 12. Qh4 h6 13. Bxe7 Qc7 14. Bxf8 Rxf8 15. f4 c4 16. Bc2 Qc6 17. Rf3 Nc5 18. Rg3 Kh8 19. Qg4 Rg8 20. f5 Qd7 21. f6 g6 22. Rh3 1-0

[Event "Stockholm Elo Challenge 2019"]
[Site "Stockholm"]
[Date "2019.06.01"]
[Round "5.1"]
[White "Karlsson, Lars"]
[Black "Bergqvist, Gustav 2004"]
[Result "1-0"]
[ECO "A01"]
[WhiteElo "2448"]
[BlackElo "1751"]
[Annotator "ChessBase"]
[PlyCount "51"]
[EventDate "2019.05.29"]
[EventType "swiss"]
[EventCountry "SWE"]
[SourceTitle "playchess.com"]
[Source "ChessBase"]
[SourceQuality "1"]
[TimeControl "40/5400+30:1800+30"]

1. b3 {[%emt 0:00:00]} d5 {[%emt 0:00:00]} 2. Bb2 {[%emt 0:00:00]} Bg4 {[%emt 0:00:00]} 3. f3 {[%emt 0:00:00]} Bh5 {[%emt 0:00:51]} 4. e3 {[%emt 0:00:00]} Nd7 {[%emt 0:00:31]} 5. d4 {[%emt 0:00:00]} Ngf6 {[%emt 0:00:22]} 6. Ne2 {[%emt 0:00:00]} e6 {[%emt 0:00:41]} 7. c4 {[%emt 0:00:24]} c6 {[%emt 0:00:58]} 8. Qd2 {[%emt 0:00:22]} Bd6 {[%emt 0:01:05]} 9. Nbc3 {[%emt 0:00:22]} Bg6 {[%emt 0:01:19]} 10. g4 {[%emt 0:03:12]} h5 {[%emt 0:10:29]} 11. g5 {[%emt 0:00:56]} Ng8 {[%emt 0:00:57]} 12. h4 {[%emt 0:01:03]} f6 {[%emt 0:04:23]} 13. Rg1 {[%emt 0:03:15]} fxg5 {[%emt 0:02:09]} 14. Rxg5 {[%emt 0:00:38]} Rh6 {[%emt 0:00:31]} 15. e4 {[%emt 0:00:42]} dxe4 {[%emt 0:04:42]} 16. Nxe4 {[%emt 0:05:39]} Bxe4 {[%emt 0:00:40]} 17. fxe4 {[%emt 0:00:14]} g6 {[%emt 0:07:33]} 18. Nf4 {[%emt 0:11:28]} Bxf4 {[%emt 0:04:37]} 19. Qxf4 {[%emt 0:00:07]} Qf6 {[%emt 0:00:32]} 20. Qe3 {[%emt 0:03:51]} Ne7 {[%emt 0:04:41]} 21. O-O-O {[%emt 0:00:48]} Qf7 {[%emt 0:06:30]} 22. Bh3 {[%emt 0:01:49]} Rh7 {[%emt 0:06:45]} 23. d5 {[%emt 0:03:04]} cxd5 {[%emt 0:05:15]} 24. exd5 {[%emt 0:04:23]} exd5 {[%emt 0:01:20]} 25. Rf1 {[%emt 0:00:36]} Qg8 {[%emt 0:00:44]} 26. Be6 {[%emt 0:00:11]} 1-0

[Event "Stockholm Elo Challenge 2019"]
[Site "Stockholm"]
[Date "2019.06.01"]
[Round "5.2"]
[White "Willinger, Tim"]
[Black "Pettersson, Alexander"]
[Result "0-1"]
[ECO "B14"]
[WhiteElo "2073"]
[BlackElo "2045"]
[Annotator "NA"]
[PlyCount "166"]
[EventDate "2019.05.29"]
[EventType "swiss"]
[EventCountry "SWE"]
[SourceTitle "playchess.com"]
[Source "ChessBase"]
[SourceQuality "1"]
[TimeControl "40/5400+30:1800+30"]

1. e4 {[%emt 0:00:00]} c6 {[%emt 0:05:34]} 2. d4 {[%emt 0:00:00]} d5 {[%emt 0:00:09]} 3. exd5 {[%emt 0:00:00]} cxd5 {[%emt 0:00:13]} 4. c4 {[%emt 0:00:00]} Nf6 {[%emt 0:00:08]} 5. Nc3 {[%emt 0:00:00]} e6 {[%emt 0:00:09]} 6. Nf3 {[%emt 0:00:04]} Be7 {[%emt 0:00:12]} 7. cxd5 {[%emt 0:00:08]} Nxd5 {[%emt 0:00:22]} 8. Bc4 {[%emt 0:00:16]} Nxc3 {[%emt 0:01:51]} 9. bxc3 {[%emt 0:00:10]} Nc6 {[%emt 0:01:05]} 10. O-O {[%emt 0:00:14]} O-O {[%emt 0:00:36]} 11. Re1 {[%emt 0:00:15]} Bd7 {[%emt 0:03:36] D41: Queen's Gambit Declined: Semi-Tarrasch with 5 cxd5} 12. Bd3 {[%emt 0:00:52]} Rc8 {[%emt 0:01:35]} 13. Bc2 $146 {[%emt 0:07:48]} ({Predecessor:} 13. Qe2 Qa5 14. Bd2 Qh5 15. Rab1 Nd8 16. c4 Bd6 17. h3 f6 18. Be4 b6 19. Rec1 Nf7 20. Qf1 f5 21. Bd3 g5 22. Be2 {½-½ (22) Korneev,O (2506)-Padeiro,J (2284) Maia 2018}) 13... Qc7 {[%emt 0:03:22]} 14. Qd3 {[%emt 0:01:21]} g6 {[%emt 0:00:26]} 15. Bh6 {[%emt 0:11:35]} Rfd8 {[%emt 0:01:32]} 16. Bg5 {[%emt 0:02:06]} f6 {[%emt 0:16:44]} 17. Bd2 {[%emt 0:03:23]} Nb4 {[%emt 0:04:24]} 18. cxb4 {[%emt 0:04:26]} Qxc2 {[%emt 0:04:37]} 19. Qxc2 {[%emt 0:04:07]} Rxc2 {[%emt 0:00:41]} 20. Rec1 {[%emt 0:00:11]} Rdc8 {[%emt 0:01:08]} 21. a3 {[%emt 0:00:40]} Kf7 {[%emt 0:06:57]} 22. Kf1 {[%emt 0:06:07]} Bb5+ {[%emt 0:05:18]} 23. Ke1 {[%emt 0:00:32]} Ke8 {[%emt 0:00:47]} 24. Be3 {[%emt 0:09:01]} Rxc1+ {[%emt 0:09:01]} 25. Rxc1 {[%emt 0:00:20]} Rxc1+ {[%emt 0:00:02]} 26. Bxc1 {[%emt 0:00:01]} Kd7 {[%emt 0:00:57]} 27. Kd2 {[%emt 0:01:13]} Kc6 {[%emt 0:02:13]} 28. Kc3 {[%emt 0:01:01]} Kd5 {[%emt 0:01:20]} 29. Be3 {[%emt 0:01:12]} Bf1 {[%emt 0:03:33]} 30. g3 {[%emt 0:00:26]} a5 {[%emt 0:04:12]} 31. Nd2 {[%emt 0:01:53]} axb4+ {[%emt 0:01:26]} 32. axb4 {[%emt 0:00:06]} Bb5 {[%emt 0:02:18]} 33. Kb3 {[%emt 0:02:55]} Bd8 {[%emt 0:08:25]} 34. Nb1 {[%emt 0:02:16]} Bc4+ {[%emt 0:00:22]} 35. Kc3 {[%emt 0:00:11]} g5 {[%emt 0:06:40]} 36. Nd2 {[%emt 0:01:04]} Be2 {[%emt 0:00:56]} 37. Nb3 {[%emt 0:03:06]} b6 {[%emt 0:02:19]} 38. Nd2 {[%emt 0:01:05]} Be7 {[%emt 0:04:00]} 39. Kb3 {[%emt 0:01:48]} h6 {[%emt 0:02:26]} 40. Nb1 {[%emt 0:03:37]} Bd1+ {[%emt 0:00:49]} 41. Kc3 {[%emt 0:32:22]} Bd6 $17 {[%emt 0:31:53]} 42. Nd2 {[%emt 0:08:48]} Be2 {[%emt 0:00:00]} 43. f3 {[%emt 0:00:00]} f5 {[%emt 0:00:00]} 44. Bg1 {[%emt 0:00:00]} Be7 {[%emt 0:00:00]} 45. Be3 {[%emt 0:00:00]} Bf6 {[%emt 0:00:00]} 46. Bf2 {[%emt 0:00:00]} h5 {[%emt 0:00:00]} 47. Be3 {[%emt 0:00:00]} h4 {[%emt 0:00:00]} 48. Bf2 {[%emt 0:00:00]} hxg3 {[%emt 0:00:00]} 49. hxg3 {[%emt 0:00:00]} Bg7 {[%emt 0:00:00]} 50. Be3 {[%emt 0:00:00]} Bf6 {[%emt 0:00:00]} 51. Bf2 {[%emt 0:00:00]} Bd8 {[%emt 0:00:00]} 52. Be3 {[%emt 0:00:00]} Be7 {[%emt 0:00:00]} 53. Bf2 {[%emt 0:00:00]} Bd6 {[%emt 0:00:00]} 54. Be3 {[%emt 0:01:20]} Bxg3 {[%emt 0:00:00]} 55. Bxg5 {[%emt 0:01:30]} Bf2 {[%emt 0:00:33]} 56. Bf6 {[%emt 0:00:20]} Be1 {[%emt 0:00:39]} 57. Be5 {[%emt 0:03:01]} Bxf3 {[%emt 0:01:22]} 58. Kd3 {[%emt 0:01:54]} Be4+ {[%emt 0:00:41]} 59. Ke2 {[%emt 0:00:20]} Bh4 {[%emt 0:05:27]} 60. Ke3 {[%emt 0:01:57]} Bg5+ {[%emt 0:00:46]} 61. Ke2 {[%emt 0:00:03]} Be7 {[%emt 0:00:28]} 62. b5 {[%emt 0:03:17]} Bb4 {[%emt 0:00:36]} 63. Ke3 {[%emt 0:03:03]} Bc2 {[%emt 0:00:24]} 64. Bc7 {[%emt 0:05:23]} Ba5 {[%emt 0:00:01]} 65. Nf3 {[%emt 0:00:42]} Ba4 {[%emt 0:00:37]} 66. Nh4 {[%emt 0:00:04]} Bxb5 {[%emt 0:00:20]} 67. Ng6 {[%emt 0:00:02]} Kc6 {[%emt 0:00:48]} 68. Be5 {[%emt 0:01:09]} Bb4 {[%emt 0:00:27]} 69. Nf4 {[%emt 0:00:20]} Bc4 {[%emt 0:00:29]} 70. Bf6 {[%emt 0:01:05]} Bd6 {[%emt 0:00:37]} 71. Ng6 {[%emt 0:00:10]} Ba2 {[%emt 0:00:46]} 72. Ne7+ {[%emt 0:00:33]} Kd7 {[%emt 0:00:26]} 73. Ng6 {[%emt 0:00:15]} b5 {[%emt 0:00:24]} 74. Ne5+ {[%emt 0:00:10]} Kc7 {[%emt 0:00:16]} 75. Kd3 {[%emt 0:00:18]} b4 {[%emt 0:00:32]} 76. Bg5 {[%emt 0:00:03]} Bd5 {[%emt 0:00:31]} 77. Bc1 {[%emt 0:00:16]} Kb6 {[%emt 0:00:37]} 78. Ke3 {[%emt 0:02:15]} Kb5 {[%emt 0:00:27]} 79. Kd3 {[%emt 0:00:02]} Ka4 {[%emt 0:00:22]} 80. Kc2 {[%emt 0:00:17]} b3+ {[%emt 0:00:26]} 81. Kc3 {[%emt 0:00:29]} Bb4+ {[%emt 0:00:17]} 82. Kd3 {[%emt 0:00:26]} Ba3 {[%emt 0:00:42]} 83. Kd2 {[%emt 0:01:36]} b2 {[%emt 0:00:38]} 0-1

[Event "Stockholm Elo Challenge 2019"]
[Site "Stockholm"]
[Date "2019.06.01"]
[Round "5.3"]
[White "Grahn, Vidar"]
[Black "Korning, Peter"]
[Result "1-0"]
[ECO "C50"]
[WhiteElo "1976"]
[BlackElo "1966"]
[Annotator "NA"]
[PlyCount "81"]
[EventDate "2019.05.29"]
[EventType "swiss"]
[EventCountry "SWE"]
[SourceTitle "playchess.com"]
[Source "ChessBase"]
[SourceQuality "1"]
[TimeControl "40/5400+30:1800+30"]

1. e4 {[%emt 0:00:00]} e5 {[%emt 0:00:00]} 2. Nf3 {[%emt 0:00:00]} Nc6 {[%emt 0:00:00]} 3. Bc4 {[%emt 0:00:00]} Nf6 {[%emt 0:00:04]} 4. d3 {[%emt 0:00:44]} Bc5 {[%emt 0:00:18]} 5. O-O {[%emt 0:00:28]} d6 {[%emt 0:00:07]} 6. c3 {[%emt 0:00:09]} a6 {[%emt 0:00:51]} 7. Bb3 {[%emt 0:01:33]} Ba7 {[%emt 0:01:16]} 8. Nbd2 {[%emt 0:00:15]} O-O {[%emt 0:02:56]} 9. Re1 {[%emt 0:01:25]} Bg4 {[%emt 0:04:53] C54: Giuoco Piano: 4 c3 Nf6, main lines with 5 d4 and 5 d3} (9... h6 10. Nf1 Re8 11. Ng3 Be6 12. Bxe6 Rxe6 13. Nh4 d5 14. Qe2 Bc5 15. Nhf5 Bf8 16. Qf3 Qd7 17. Nh5 Nxh5 18. exd5 {½-½ (34) Onischuk,V (2610)-Ovsejevitsch,S (2602) Dresden 2017}) 10. h3 {[%emt 0:00:40]} Bh5 {[%emt 0:00:30]} 11. Nf1 {[%emt 0:00:54]} d5 {[%emt 0:10:16]} 12. exd5 $146 {[%emt 0:06:22]} ({Predecessor:} 12. Ng3 Bg6 13. Qe2 dxe4 14. dxe4 Nd7 15. Bg5 Qc8 16. Rad1 {1-0 (38) Tesla,V (2293)-Kutsykh,M (2295) Odessa 2010}) 12... Nxd5 {[%emt 0:01:20]} 13. Ng3 {[%emt 0:01:35]} Bg6 {[%emt 0:00:59]} 14. Nxe5 {[%emt 0:04:02]} Nxe5 {[%emt 0:00:20]} 15. Rxe5 {[%emt 0:01:55]} c6 {[%emt 0:23:38]} 16. d4 {[%emt 0:03:17]} Bb8 {[%emt 0:02:43]} 17. Re1 {[%emt 0:03:19]} Qd6 {[%emt 0:07:45]} 18. Qf3 {[%emt 0:04:29]} Bc7 {[%emt 0:03:05]} 19. Bd2 {[%emt 0:04:37]} Rae8 {[%emt 0:02:18]} 20. a3 {[%emt 0:02:33]} h5 {[%emt 0:04:29]} 21. c4 {[%emt 0:03:07]} Nf6 {[%emt 0:05:26]} 22. Bb4 {[%emt 0:02:06]} Qxd4 {[%emt 0:01:20]} 23. Bxf8 {[%emt 0:00:36]} Rxf8 {[%emt 0:00:25]} 24. Qe3 $16 {[%emt 0:04:34]} Bb6 {[%emt 0:07:07]} 25. Qxd4 {[%emt 0:12:34]} Bxd4 {[%emt 0:00:02]} 26. Re2 {[%emt 0:01:00]} h4 {[%emt 0:01:52]} 27. Nf1 {[%emt 0:07:00]} Ne4 {[%emt 0:02:41]} 28. Rd1 {[%emt 0:11:20]} c5 {[%emt 0:01:53]} 29. Nd2 {[%emt 0:01:40]} f5 {[%emt 0:05:11]} 30. Nf3 {[%emt 0:03:38]} Bh5 {[%emt 0:01:33]} 31. Nxd4 {[%emt 0:01:28]} cxd4 {[%emt 0:00:17]} 32. f3 {[%emt 0:00:33]} Rd8 {[%emt 0:03:44]} 33. Bc2 {[%emt 0:00:50]} Kf7 {[%emt 0:04:17]} 34. Bxe4 {[%emt 0:00:31]} fxe4 {[%emt 0:00:02]} 35. Rxe4 {[%emt 0:00:37]} d3 {[%emt 0:00:28]} 36. Kf2 {[%emt 0:03:04]} Bg6 {[%emt 0:00:44]} 37. Rxh4 {[%emt 0:00:40]} d2 {[%emt 0:01:42]} 38. Ke3 {[%emt 0:01:16]} Bc2 {[%emt 0:01:48]} 39. Rxd2 {[%emt 0:00:19]} Re8+ {[%emt 0:00:02]} 40. Kf2 {[%emt 0:00:17]} g5 {[%emt 0:00:26]} 41. Rhd4 {[%emt 0:30:28]} 1-0